Cogmind - Beta 17 @@@ ROGUE MODE // 2026.08.02 @ 01:06:01 Player: 4R-ZE3 Result: Destroyed by D-53 Grenadier with Mini Grenade Launcher Performance ------------- Evolutions (0) 0 Regions Visited (4) 800 Robots Destroyed (23) 115 Value Destroyed (490) 490 Prototype IDs (23) 460 Alien Tech Used (0) 0 Bonus (300) 300 TOTAL SCORE: 2165 Bonus ------- Aligned with FarCom 300 Cogmind --------- Core Integrity 0/250 Matter 203/300 Energy 87/250 System Corruption 3% Temperature Cool (2) Movement Walking (45) Location -9/Mines Parts ------- > --- POWER (1) -------- Ion Engine > --- PROPULSION (2) --- Potential Leg Potential Leg > --- UTILITY (2) ------ High-capacity Storage Unit Terrain Scanner > --- WEAPON (2) ------- (None) > --- INVENTORY (20) --- Ion Engine Light Treads Light Treads Light Treads Light Treads Wheel Heat Sink Improved Heat Sink Small Storage Unit Medium Storage Unit High-capacity Matter Pod (200) Hacking Suite Small Laser Assault Rifle Light Assault Rifle Katana Peak State ------------ > --- POWER ------------ Improved Ion Engine > --- PROPULSION ------- Potential Leg Potential Leg > --- UTILITY ---------- High-capacity Storage Unit Terrain Scanner > --- WEAPON ----------- Assault Rifle Light Assault Rifle > --- INVENTORY -------- Ion Engine Ion Engine Light Treads Light Treads Light Treads Light Treads Wheel Compact Wheel Heat Sink Improved Heat Sink Small Storage Unit Medium Storage Unit High-capacity Matter Pod Hacking Suite Small Laser Assault Rifle Light Assault Rifle Katana [Rating: 28] Favorites ----------- Power Ion Engine Engine Ion Engine Propulsion Light Treads Treads Light Treads Leg Potential Leg Wheel Wheel Utility Terrain Scanner Device Terrain Scanner Storage High-capacity Storage Unit Processor Signal Interpreter Weapon Assault Rifle Energy Gun Small Laser Ballistic Gun Assault Rifle Build | -11 -10 -10 -10 -9 ------- Run | Yrd Mat Min Exi Min Slots Evolved . | . . . . . Power . | . . . . . Propulsion . | . . . . . Utility . | . . . . . Weapon . | . . . . . Parts Attached 23 | 5 8 . . 10 Power 5 | 1 1 . . 3 Engine 5 | 1 1 . . 3 Core . | . . . . . Reactor . | . . . . . Propulsion 9 | 2 1 . . 6 Treads 5 | 2 1 . . 2 Leg 2 | . . . . 2 Wheel 2 | . . . . 2 Hover . | . . . . . Flight . | . . . . . Utility 5 | 1 4 . . . Device 1 | . 1 . . . Storage 3 | 1 2 . . . Processor 1 | . 1 . . . Hackware . | . . . . . Protection . | . . . . . Artifact . | . . . . . Weapon 4 | 1 2 . . 1 Energy Gun 1 | . 1 . . . Energy Cannon . | . . . . . Ballistic Gun 3 | 1 1 . . 1 Ballistic Cannon . | . . . . . Launcher . | . . . . . Special Weapon . | . . . . . Impact Weapon . | . . . . . Slashing Weapon . | . . . . . Piercing Weapon . | . . . . . Special Melee Weapon . | . . . . . Unidentified Prototypes . | . . . . . Parts Lost 6 | . 1 1 . 4 Power 2 | . 1 . . 1 Propulsion 2 | . . 1 . 1 Utility . | . . . . . Weapon 2 | . . . . 2 Highest Loss Streak 4 | . 1 1 . 4 To Critical Strikes . | . . . . . Average Backups 12 | 1 7 11 14 16 Power 1 | . 1 1 1 1 Propulsion 3 | 1 2 2 2 4 Utility 4 | . 3 6 6 6 Weapon 2 | . 1 2 4 3 Tool/Special . | . . . . . Unused Backups 6 | . . . . 6 Power . | . . . . . Propulsion . | . . . . . Utility 4 | . . . . 4 Weapon 2 | . . . . 2 Tool/Special . | . . . . . Average Slot Usage (%) 92 | . 92 99 71 99 Engine 13 | . 12 14 14 14 Treads 27 | . 28 27 28 27 Device 13 | . 11 14 14 14 Storage 14 | . 14 14 14 14 Ballistic Gun 21 | . 22 28 . 27 Peak Build Rating 28 | 5 8 8 8 28 Average Rating 8 | 4 6 7 6 11 On Entrance 5 | . 5 8 8 8 Avg Prop Armor Cover (%) . | . . . . . Naked Turns . | . . . . . Heaviest Build 51 | 10 50 50 46 51 Greatest Support 60 | 40 40 40 40 60 Greatest Overweight (x) 1 | . 1 1 1 1 Average Overweight (x) . | . . 1 1 . Largest Inventory Capacity 20 | 8 20 20 20 20 Average Capacity 18 | 7 15 20 20 20 Most Carried 18 | 3 12 12 16 18 Average Carried 12 | 1 7 11 14 16 Final Capacity 20 | 8 20 20 20 20 Final Carried 16 | 3 12 12 16 16 Class Distribution -------------------- 69% | Mutant 30% | Skirmisher Dominant Class ---------------- Mutant | -10/Materials Mutant | -10/Mines Mutant | -10/Exiles Skirmisher | -9/Mines Resources | -11 -10 -10 -10 -9 ----------- Run | Yrd Mat Min Exi Min Matter Collected 991 | 179 473 72 . 267 Remotely . | . . . . . Salvage Created 792 | . 574 92 . 126 Parts 39 | . 26 5 . 8 Haulers Intercepted . | . . . . . Recyclers Shooed 4 | . 2 1 . 1 Parts Field Recycled . | . . . . . Retrieved Matter . | . . . . . Parts Self-Destructed . | . . . . . Prevented . | . . . . . Parts Restored . | . . . . . Kills | -11 -10 -10 -10 -9 ------- Run | Yrd Mat Min Exi Min Combat Hostiles Destroyed 19 | . 12 4 . 3 Guns 19 | . 12 4 . 3 Classes Destroyed 5 | . 4 . . 1 Recycler 3 | . 3 . . . Operator 1 | . 1 . . . Swarmer 9 | . 6 3 . . Grunt 9 | . 6 1 . 2 Duelist 1 | . . . . 1 Best Kill Streak 4 | . 4 4 . 3 Combat Bots Only 4 | . 3 4 . 3 Max Kills in Single Turn 2 | . 2 1 . 1 Gunslinging 1 | . 1 . . . Exploded . | . . . . . Melee . | . . . . . Uniques/NPCs Destroyed . | . . . . . Combat | -11 -10 -10 -10 -9 -------- Run | Yrd Mat Min Exi Min Hostile Shots Fired 135 | . 68 41 . 26 Missed 48 | . 25 16 . 7 Hits 87 | . 43 25 . 19 Melee 2 | . . . . 2 Projectile 85 | . 43 25 . 17 AOE 8 | . . . . 8 Critical Strikes 1 | . 1 . . . Damage Taken 1156 | . 435 229 . 492 Core 271 | . 72 47 . 152 Absorbed by Shields . | . . . . . Core Remaining (%) 100 | 100 . . . . Volleys Fired 72 | . 47 11 . 14 Largest 2 | . 2 2 . 2 Hottest 60 | . 60 40 . 40 Shots Fired 134 | . 86 22 . 26 Gun 134 | . 86 22 . 26 Cannon . | . . . . . Launcher . | . . . . . Special . | . . . . . Kinetic 126 | . 78 22 . 26 Thermal 8 | . 8 . . . Explosive . | . . . . . Electromagnetic . | . . . . . Robot Hit Streak 10 | . 10 5 . 4 Robot Miss Streak 5 | . 2 5 . 2 Penetration Max . | . . . . . Secondary Targets 3 | . 1 1 . 1 Max Gunslinging Chain 1 | . 1 1 . 1 Shots Hit Robots 86 | . 60 10 . 16 Core Hits 40 | . 25 5 . 10 Critical Kills . | . . . . . Critical Parts Destroyed . | . . . . . Critical Strikes . | . . . . . Melee Attacks . | . . . . . Impact . | . . . . . Slashing . | . . . . . Piercing . | . . . . . Sneak Attacks . | . . . . . Combat Hostiles . | . . . . . Follow-up Attacks . | . . . . . Damage Inflicted 1057 | . 746 125 . 186 Guns 1057 | . 746 125 . 186 Cannons . | . . . . . Explosions . | . . . . . Melee . | . . . . . Ramming . | . . . . . Kinetic 1000 | . 689 125 . 186 Thermal 57 | . 57 . . . Explosive . | . . . . . Electromagnetic . | . . . . . Impact . | . . . . . Slashing . | . . . . . Piercing . | . . . . . Highest Corruption 3 | . 3 3 3 3 Average Corruption 2 | . 2 3 3 3 Corruption Purged . | . . . . . Corruption Blocked . | . . . . . Effects 50 | . 13 14 8 15 Message Errors 15 | . 4 5 4 2 Matter Fused 10 | . 2 4 1 3 Heat Flow Errors 8 | . 2 2 1 3 Energy Discharges 7 | . 2 1 . 4 Parts Rejected 1 | . 1 . . . Parts Fused 1 | . . . . 1 Data Loss (minor) 5 | . 2 2 1 . Data Loss (major) 1 | . . . 1 . Alerts 2 | . . . . 2 Overload Shots . | . . . . . Overflow Damage . | . . . . . Projectiles . | . . . . . Explosions . | . . . . . Melee . | . . . . . Knockbacks . | . . . . . Impact . | . . . . . Kinetic . | . . . . . Secondary . | . . . . . Self-Inflicted Damage . | . . . . . Shots . | . . . . . Rammed . | . . . . . Targets Rammed . | . . . . . Kicked . | . . . . . Crushed . | . . . . . Highest Temperature 230 | . 144 230 176 210 Average Temperature 70 | . 39 100 89 79 Received Heat Transfer 276 | . 180 60 . 36 Siege Activations . | . . . . . Martial Activations . | . . . . . Shielding Activations . | . . . . . Robots Disrupted . | . . . . . Combat Hostiles . | . . . . . Robots Corrupted . | . . . . . Combat Hostiles . | . . . . . Parts Fried . | . . . . . Impact Corruptions . | . . . . . Robots Melted . | . . . . . Combat Hostiles . | . . . . . Parts Melted 1 | . 1 . . . Heat Transferred 125 | . 125 . . . Parts Sabotaged . | . . . . . Parts Stolen . | . . . . . Parts Stripped . | . . . . . Power Chain Reactions . | . . . . . Alert | -11 -10 -10 -10 -9 ------- Run | Yrd Mat Min Exi Min Maximum Alert Level . | . . . . . Low Security (%) 100 | 100 100 100 . 100 Level 1 . | . . . . . Level 2 . | . . . . . Level 3 . | . . . . . Level 4 . | . . . . . Level 5 . | . . . . . High Security . | . . . . . Max Security . | . . . . . Peak Influence 115 | . 115 64 . 60 Initial 24 | . . 24 . . Average 17 | . 37 11 . 4 Influence Increases 461 | . 301 90 . 70 Destroy 0b10 Robot/C 380 | . 240 80 . 60 Destroy 0b10 Robot/NC 20 | . 20 . . . Destroy Leader 60 | . 40 10 . 10 Destroy Structure 1 | . 1 . . . Influence Decreases 461 | . 238 129 24 70 Entered New Map 63 | . . 39 24 . Time Decay 378 | . 228 80 . 70 Lost Part 20 | . 10 10 . . Squads Dispatched 2 | . 2 . . . Investigation . | . . . . . Extermination . | . . . . . Reinforcement 2 | . 2 . . . Assault . | . . . . . Garrison . | . . . . . Intercept . | . . . . . Searches Triggered . | . . . . . Construction Impeded . | . . . . . Haulers Reinforced . | . . . . . Active Scanning Responses . | . . . . . Cargo Convoy Interrupts . | . . . . . Stealth | -11 -10 -10 -10 -9 --------- Run | Yrd Mat Min Exi Min Distress Signals 1 | . 1 . . . Communications Jammed . | . . . . . Distress Signals . | . . . . . Times Spotted 53 | . 22 4 . 27 Peak Tracking Total 20 | . 4 4 . 20 Tactical Retreats 2 | . . . . 2 Traps | -11 -10 -10 -10 -9 ------- Run | Yrd Mat Min Exi Min Traps Triggered 2 | . 2 . . . Indirectly . | . . . . . Trap Hack Attempts . | . . . . . Triggered . | . . . . . Disarmed . | . . . . . Reprogrammed . | . . . . . Reused . | . . . . . Traps Extracted . | . . . . . Installed . | . . . . . Triggered . | . . . . . Machines | -11 -10 -10 -10 -9 ---------- Run | Yrd Mat Min Exi Min Machines Disabled . | . . . . . Max in Single Turn . | . . . . . Machines Repaired . | . . . . . Machines Dismantled . | . . . . . Machines Sabotaged . | . . . . . Overloaded Fab Kills . | . . . . . Hacking | -11 -10 -10 -10 -9 --------- Run | Yrd Mat Min Exi Min Machines Accessed 6 | . 4 1 1 . Terminals 4 | . 3 1 . . Fabricators . | . . . . . Repair Stations . | . . . . . Recycling Units 1 | . 1 . . . Scanalyzers . | . . . . . Garrison Access . | . . . . . Total Hacks 8 | . 6 1 1 . Successful 2 | . 1 . 1 . Failed 6 | . 5 1 . . Catastrophic 2 | . 1 1 . . Database Lockouts . | . . . . . Manual 6 | . 5 . 1 . Terminals 6 | . 5 1 . . Fabricators . | . . . . . Repair Stations . | . . . . . Recycling Units 1 | . 1 . . . Scanalyzers . | . . . . . Garrison Access . | . . . . . Terminal Hacks 1 | . . . 1 . Proto ID Catalog 1 | . . . 1 . Fabricator Hacks . | . . . . . Repair Station Hacks . | . . . . . Recycling Unit Hacks 1 | . 1 . . . Retrieve Components 1 | . 1 . . . Scanalyzer . | . . . . . Garrison Access Hacks . | . . . . . Unauthorized Hacks . | . . . . . Terminals . | . . . . . Fabricators . | . . . . . Repair Stations . | . . . . . Recycling Units . | . . . . . Scanalyzers . | . . . . . Garrison Access . | . . . . . Data Cores Recovered . | . . . . . Used . | . . . . . Hacking Detections 4 | . 3 1 . . Full Trace Events . | . . . . . Feedback Events . | . . . . . Feedback Blocked . | . . . . . Robot Schematics Acquired . | . . . . . Robots Built . | . . . . . Authchips . | . . . . . Time . | . . . . . Total Robot Build Rating . | . . . . . Part Schematics Acquired . | . . . . . Parts Built . | . . . . . Authchips . | . . . . . Time . | . . . . . Total Part Build Rating . | . . . . . Part Studies Acquired . | . . . . . Parts Repaired . | . . . . . Time . | . . . . . Parts Recycled . | . . . . . Recycled Matter . | . . . . . Retrieved Matter . | . . . . . Retrieved Components 1 | . 1 . . . Parts Scanalyzed . | . . . . . Part Schematics Acquired . | . . . . . Parts Damaged . | . . . . . Bothacking | -11 -10 -10 -10 -9 ------------ Run | Yrd Mat Min Exi Min Used RIF Installer . | . . . . . Robots Hacked . | . . . . . Non-combat . | . . . . . Combat . | . . . . . Robot Hacks Applied . | . . . . . Relay Couplers Released . | . . . . . Fabnet Peak Effective % . | . . . . . Robots Rewired . | . . . . . Allies Hacked . | . . . . . Hacks Repelled . | . . . . . Allies | -11 -10 -10 -10 -9 -------- Run | Yrd Mat Min Exi Min Total Allies . | . . . . . Largest Group . | . . . . . Highest-Rated Group . | . . . . . Highest-Rated Ally . | . . . . . Total Orders . | . . . . . Ally Attacks . | . . . . . Total Damage . | . . . . . Kills . | . . . . . Allies Corrupted . | . . . . . Allies Melted . | . . . . . Intel | -11 -10 -10 -10 -9 ------- Run | Yrd Mat Min Exi Min Active Infowar (turns) 2781 | . 749 562 498 972 Terrain 2781 | . 749 562 498 972 Robot Analysis Total . | . . . . . Derelict Logs Recovered 5 | . . 2 . 3 Drone Launches . | . . . . . Drone Recoveries . | . . . . . Exploration | -11 -10 -10 -10 -9 ------------- Run | Yrd Mat Min Exi Min Turns Passed 3034 | 89 913 562 498 972 Spaces Moved 1235 | 49 374 214 207 391 Core 3 | 3 . . . . Treads 1204 | 46 374 214 207 363 Legs 23 | . . . . 23 Wheels 5 | . . . . 5 Hover . | . . . . . Flight . | . . . . . Fastest Speed 45 | 50 160 240 240 45 Average Speed 220 | 153 199 240 240 227 Slowest Speed 240 | 160 240 240 240 240 Overloaded Moves 17 | . . . . 17 Propulsion Burnouts . | . . . . . Robots Hopped . | . . . . . Potential Cave-ins . | . . . . . Cave-ins Triggered . | . . . . . Exploration Rate (%) 48 | 3 62 51 61 63 Regions Visited 4 Branch Regions 3 Pre-discovered Areas 1 | . . . . 1 Known Exits Taken . | . . . . . Unknown Exits Taken 4 | 1 1 1 1 . Scrap Searched 2 | . . . . 2 Spaces Dug . | . . . . . Terrain Destroyed . | . . . . . Melee . | . . . . . Projectile . | . . . . . AOE . | . . . . . Terrain Rammed . | . . . . . Walls Destroyed . | . . . . . Machines Disabled . | . . . . . Actions | -11 -10 -10 -10 -9 --------- Run | Yrd Mat Min Exi Min Total 1409 | 61 453 241 210 444 Wait 58 | 5 16 15 . 22 Move 1231 | 48 373 213 206 391 Hop . | . . . . . Pick Up 15 | 3 7 1 2 2 Fast Attach 10 | 5 4 . . 1 Attach 6 | . 1 1 . 4 Detach 2 | . . . 2 . Swap 13 | . 4 . . 9 Drop 2 | . 1 . . 1 Fire 72 | . 47 11 . 14 Melee . | . . . . . Ram . | . . . . . Kick . | . . . . . Crush . | . . . . . Escape Stasis . | . . . . . Rewire . | . . . . . Trap . | . . . . . Miscellaneous . | . . . . . Route ------- -11/Scrapyard -10/Materials (discovered 3 exits: [*Mat x2] / *Min) -10/Mines -10/Exiles -9/Mines History --------- Turn | Location | Event 19 | -11/Scrapyard | Discovered new exit (range 16) 90 | -11/Scrapyard | Entered Materials 315 | -10/Materials | Build established: Mutant 435 | -10/Materials | Discovered new exit (range 16) 752 | -10/Materials | Discovered new exit (range 4) 955 | -10/Materials | Discovered new exit (range 8) 1003 | -10/Materials | Entered Mines 1006 | -10/Mines | Met a Derelict bent on vengeance 1316 | -10/Mines | Learned Materials non-interactive machine intel 1536 | -10/Mines | Learned Materials stockpile data 1553 | -10/Mines | Deemed a non-threat by the Exiles lab entrance 1553 | -10/Mines | Discovered new exit (range 5) 1565 | -10/Mines | Entered Exiles 1624 | -10/Exiles | Met 8R-AWN 1667 | -10/Exiles | Met EX-HEX 1737 | -10/Exiles | Met EX-BIN 1763 | -10/Exiles | Aligned with FarCom system 1766 | -10/Exiles | Given EX-Vault access code 1821 | -10/Exiles | Opened EX-Vault 1840 | -10/Exiles | Found Potential Leg 1843 | -10/Exiles | Found Potential Leg 1888 | -10/Exiles | Warned to stay clear of 0b10 Research branches 1920 | -10/Exiles | Exiles lab attacked by MAIN.C 2044 | -10/Exiles | Discovered new exit (range 10) 2063 | -10/Exiles | Left Exiles lab with Potential Leg 2063 | -10/Exiles | Entered Mines 2080 | -9/Mines | Learned location of 1 exit from Materials 2150 | -9/Mines | Core integrity fell below 50% 2232 | -9/Mines | Found DCF Scrap (14 items) 2239 | -9/Mines | Received a Rocket Launcher from a helpful Derelict 2312 | -9/Mines | Learned location of 1 exit from Proximity Caves 2366 | -9/Mines | Build established: Skirmisher 2649 | -9/Mines | Learned Materials stockpile data 2924 | -9/Mines | Learned location of Storage (-8) 2972 | -9/Mines | Assembled infested the area 2977 | -9/Mines | Assisted by a Guerilla fighting off Assembled 3029 | -9/Mines | Core integrity fell below 20% 3035 | -9/Mines | Destroyed by D-53 Grenadier with Mini Grenade Launcher Last Messages --------------- 03002_ as-47794 knocked back. 03012_ 8T-TAQ(h) destroyed. 03014_ D-53 Grenadier unfolds itself. 03019_ System corrupted: Heat flow error (+229). 03022_ Assault Rifle destroyed. 03022_ as-55416 destroyed. 03026_ The unstable cave ceiling collapses. 03027_ as-11208 destroyed. 03028_ Com. Wheel destroyed. 03029_ as-21182 destroyed. 03029_ as-50945 destroyed. 03029_ as-78120 destroyed. 03029_ as-79214 destroyed. 03029_ as-98786 destroyed. 03031_ Lgt. Assault Rifle destroyed. 03033_ Imp. Ion Engine destroyed. 03033_ as-66815 destroyed. 03034_ The unstable cave ceiling collapses. 03035_ System corrupted: IFF burst signal emitted. Map ----- +----------------------------------------------------+ | | | | | ??????????????????????????????????????????? | | ??????????????????????????????????????????? | | ??????????????????????????????????????????? | | ??????????????????????????????????????????? | | ??????????????????????????????????????????? | | ??????????????????????????????????????????? | | ??????????????????????????????????????????? | | ?????????????????????????????????????#????# | | ??????????????????????????????????????#???? | | ????????????????????????????#??????????##?# | | ?????????????????????????????????????????## | | ??????????????? ??????????????????????#??# | | ??????????????? ???????????#?????????????# | | ???????????????%???????????????#???#??#??## | | ???????????????%?????#######???#??????#??#? | | ??????????????? ????## # ###?????????##?? | | ???????????????%????# # ##???????????# | | ?????????# #### ????# #???#??##???# | | ???????????%! ##### #???????????# | | ????????????? %%## ## #?#?#??#?##?# | | ?????????????##% ####????##### | | ????#??????### #???## | | ????#???????# # ##???# ### | | ???????#???### = @ #?#?# ##? | | ?????????##??# * % ##???# #?? | | #?#??##???#?# a # #???## #?? | | ????????????# a #??#?# ##? | | ?????#??##### dd ## ##?#### ### | | ???????## ### #### ###?##?## | | ????#### ## #??#### #??#????# ###### | | ??### #?## # #???????# #????? | | ???# ## ### " #####?#????# ##?#?? | | ??## ##### "%##????###???# ###??# | | ???# ##???#### ####???#???#?# #?#### | | ???# ##??????## ##?##?#??????# ### # | | ???## #???#?### ###?????????# ##? | | ????# #?????# #?#????????## #??# | | ????# #???### #??##??#???##=#??# | | ????# ##?????## ###?????######/####* | | ?#??## ##????#??## ##???????# !!][[!! | | ?????####???#????## #######??#*########## | | ??????????#???????# #??# ##?#?#?#?## | | ??????????????????# #### #??#??#???? | | ??#?????#?????? ??####### #??#??????? | | ???????????????????????## ######?#???????? | | ???????#????? ????####??# #?#??#??#?????#? | | ???????????? ??? ?????#?# #??????#?????#?? | | ??????????? ???????????## ##?#??#?#??#???? | +----------------------------------------------------+ Best States ------------- Heat Dissipation 25 Energy Generation 12 Energy Capacity 265 Matter Stores 300 Matter Capacity 300 Sight Range 16 Terrain Scan Range 14 Terrain Scan Density 10 Evasion (%) 58 Recoil Reduction 2 Item Schematics ----------------- None Robot Schematics ------------------ None Fabricated ------------ Nothing Repaired ---------- Nothing Studied --------- None Alien Tech Used ----------------- None Achievements -------------- None Challenges ------------ None Game ------ Seed OvertunedNeutronRailgun Manual? 0 Play Time 00:15:52 Cumulative 142.8 hours Start 2026.08.02 @ 00:50:27 End 2026.08.02 @ 01:06:01 Sessions 1 Manual Loads 0 Difficulty Rogue Special Mode None Game No. 154 Rogue 100 Adventurer 54 Explorer 0 Win Type - Total 7 Types 3/0/1/1/0/0/0/1/0/1 Lore% 59 Gallery% 54 Achievement% 52 Wizard Run 0 Options --------- Layout 1 ASCII 0 Keyboard 0 Movement Mouse Keybinds 1 Fullscreen 2 Font 32/Tamsyn Map View 50x35 Zoom Use 0% Tactical HUD 1 Map Filters NONE Filters NONE Steam 1 RUN: 9c712a8f-7e3c-4a08-bce4-89edbbaa08b0